fUST/lending_fUST_20250416
["ID","MTS","AMOUNT","RATE_DAILY","PERIOD"]
[358159210,1744800646450,-500.0,0.00039726,7]
[358159211,1744800646460,-500.0,0.00039726,7]
[358159212,1744800646470,-500.0,0.00039726,7]
[358159213,1744800646479,-500.0,0.00039726,7]
[358159214,1744800646489,-500.0,0.00039726,7]
[358159215,1744800646499,-500.0,0.00039726,7]
[358159216,1744800646508,-500.0,0.00039726,7]
[358159217,1744800646517,-500.0,0.00039726,7]
[358159218,1744800646527,-500.0,0.00039726,7]
[358159219,1744800646538,-500.0,0.00039726,7]
[358159220,1744800646548,-500.0,0.00039726,7]
[358159221,1744800646558,-451.42821434,0.00039726,7]
[358159222,1744800646568,-153.0,0.00039726,30]
[358159223,1744800646579,-153.0,0.00039726,30]
[358159224,1744800646588,-153.0,0.00039726,30]
[358159225,1744800646598,-153.0,0.00039726,30]
[358159226,1744800646608,-153.0,0.00039726,30]
[358159227,1744800646617,-176.9150858,0.00039726,30]
[358159228,1744800646627,-150.0,0.00039844,2]
[358159229,1744800646637,-150.0,0.00039844,2]
[358159230,1744800646647,-1499.99999999,0.0003999,2]
[358159231,1744800646657,-196.29847968,0.00040173,2]
[358159232,1744800646667,-285.08876803,0.0004021,15]
[358159233,1744800646676,-198.7008415,0.00040273,4]
[358159234,1744800646686,-196.29847968,0.00040502,2]
[358159235,1744800646696,-168.31430499,0.00040502,2]
[358159236,1744800646706,-500.0,0.00040502,2]
[358159237,1744800646717,-153.07980777,0.00040502,2]
[358159238,1744800646726,-152.2274126,0.00040502,2]
[358159239,1744800646736,-151.0,0.00040502,2]
[358159240,1744800646746,-179.21218439,0.00040502,2]
[358159241,1744800646756,-151.40839758,0.00040502,2]
[358159242,1744800646765,-254.42379295,0.00040502,2]
[358159243,1744800646775,-500.0,0.00040502,2]
[358159244,1744800646784,-500.0,0.00040502,2]
[358159245,1744800646793,-151.0,0.00040502,2]
[358159246,1744800646803,-160.13488128,0.00040502,2]
[358159247,1744800646813,-848.3600287,0.00040502,28]
[358159248,1744800646822,-500.0,0.00040529,2]
[358159249,1744800646832,-151.0,0.00040529,2]
[358159250,1744800646842,-500.0,0.00040529,2]
[358159251,1744800646851,-500.0,0.00040529,2]
[358159252,1744800646861,-191.39767635,0.00040529,2]
[358159253,1744800646869,-155.24465337,0.00040557,2]
[358159254,1744800646879,-151.0,0.00040557,2]
[358159255,1744800646888,-500.0,0.00040557,2]
[358159256,1744800646898,-353.89535354,0.00040557,2]
[358159257,1744800646910,-23251.2070504,0.00040572,3]
[358159258,1744800646921,-326.86602716,0.00040581,31]
[358159259,1744800646932,-69753.6211511,0.00040582,3]
[358159260,1744800646943,-158.39609007,0.00040584,2]
[358159261,1744800646953,-500.0,0.00040584,2]
[358159262,1744800646963,-116256.035252,0.00040592,3]
[358159263,1744800646972,-10105.38328703,0.00040602,2]
[358159264,1744800646986,-385.22300047,0.00040602,2]
[358159265,1744800783470,175.1690347,0.00025,120]
[358159293,1744801592139,-262.07378397,0.000379,14]
[358159294,1744801592162,-300.0,0.00037955,2]
[358159295,1744801592187,-262.07378394,0.0003821,14]
[358159296,1744801592212,-150.0,0.00038492,2]
[358159297,1744801592239,-262.07378394,0.00038521,14]
[358159298,1744801592267,-262.07378394,0.00038831,14]
[358159299,1744801592292,-1002.32672496,0.00039,10]
[358159300,1744801592322,-262.07378394,0.00039141,15]
[358159301,1744801592345,-160.0,0.00039399,2]
[358159302,1744801592368,-777.80134732,0.00039451,2]
[358159303,1744801592398,-262.07378394,0.00039452,15]
[358159304,1744801592423,-400.0,0.0003976,5]
[358159305,1744801592449,-400.0,0.0003976,5]
[358159306,1744801592476,-262.07378394,0.00039762,15]
[358159307,1744801592502,-262.07378394,0.00040072,15]
[358159308,1744801592527,-187.6619059,0.00040273,4]
[358159309,1744801592552,-262.07378394,0.00040383,15]
[358159310,1744801592578,-500.0,0.00040491,31]
[358159311,1744801592610,-500.0,0.00040491,2]
[358159312,1744801592635,-500.0,0.00040491,31]
[358159313,1744801592660,-500.0,0.00040491,31]
[358159314,1744801592689,-225.0,0.00040491,31]
[358159315,1744801592715,-604.42085409,0.00040491,31]
[358159316,1744801592744,-500.0,0.00040491,31]
[358159317,1744801592769,-500.0,0.00040491,31]
[358159318,1744801592795,-500.0,0.00040491,31]
[358159319,1744801592819,-500.0,0.00040491,31]
[358159320,1744801592844,-299.2402994,0.00040491,31]
[358159335,1744801832120,-312.54626401,0.00028,10]
[358159336,1744801832131,-740.5920688,0.0003711,2]
[358159337,1744801832142,-203.52070863,0.000379,14]
[358159338,1744801832151,-203.52070851,0.0003821,14]
[358159339,1744801832162,-150.0,0.00038391,2]
[358159340,1744801832172,-203.52070851,0.00038521,14]
[358159341,1744801832182,-203.52070851,0.00038831,14]
[358159342,1744801832192,-203.52070851,0.00039141,15]
[358159343,1744801832201,-203.52070851,0.00039452,15]
[358159344,1744801832211,-203.52070851,0.00039762,15]
[358159345,1744801832220,-203.52070851,0.00040072,15]
[358159346,1744801832229,-1319.49756543,0.00040273,2]
[358159347,1744801832238,-187.6619059,0.00040273,4]
[358159348,1744801832247,-203.52070851,0.00040383,15]
[358159349,1744801832256,-300.0,0.0004048,5]
[358159350,1744801832266,-178.26898379,0.00040481,31]
[358159351,1744801832275,-500.0,0.00040481,7]
[358159352,1744801832284,-500.0,0.00040481,31]
[358159353,1744801832293,-500.0,0.00040481,31]
[358159354,1744801832304,-500.0,0.00040481,7]
[358159355,1744801832313,-383.49202381,0.00040481,7]
[358159356,1744801832322,-500.0,0.00040481,31]
[358159357,1744801832331,-500.0,0.00040481,31]
[358159358,1744801832340,-325.24705843,0.00040481,31]
[358159359,1744801832350,-12876.1731699,0.00040482,3]
[358159361,1744801832359,-408.95132783,0.00040491,31]
[358159363,1744801832369,-441.4754865,0.00040492,3]
[358159365,1744801832382,-76815.563533,0.00040492,3]
[358159367,1744801832391,-9824.19539448,0.00040501,2]
[358159369,1744801832401,-1712.60140598,0.00040501,3]
[358159371,1744801832410,-102757.69642021,0.00040502,2]
[358159373,1744801832456,-703.66581251,0.00040502,2]
[358159383,1744801838272,-416.351307,0.00040502,2]
[358159385,1744801838285,-500.0,0.00040502,2]
[358159388,1744801838297,-683.4702858,0.00040502,2]
[358159391,1744801838325,-1806.41131233,0.00040502,2]
[358159393,1744801838337,-2016.07685197,0.00040502,2]
[358159396,1744801838350,-1316.49258362,0.00040502,2]
[358159398,1744801838361,-2014.40851161,0.00040502,2]
[358159407,1744801840420,-9598.5326794,0.00040502,2]
[358159408,1744801840475,-994.5,0.00040502,2]
[358159409,1744801840487,-1210.24457878,0.00040502,2]
[358159412,1744801843206,-2089.42455252,0.00040502,2]
[358159413,1744801843457,-1207.2350208,0.00040502,2]
[358159414,1744801843473,-313.61534488,0.00040502,2]
[358159424,1744801846186,-36964.22312609,0.00040502,2]
[358159433,1744802339548,1527.0,0.00025,120]
[358159450,1744802922519,525.84125274,0.000175,4]
[358159454,1744802928099,1640.09838356,0.00015,2]
[358159455,1744802944731,-199.29166671,0.00026999,2]
[358159456,1744802953141,-100.70833329,0.00026999,2]
[358159457,1744802953166,-7806.09089073,0.00027,30]
[358159458,1744802955074,-1355.85818178,0.00027,30]
[358159484,1744803032341,-300.0,0.00026999,2]
[358159485,1744803032351,-3877.31,0.00027,30]
[358159522,1744803038367,-9310.74092749,0.00027,30]
[358159523,1744803038377,-5728.4711653,0.0002834,2]
[358159525,1744803038387,-500.0,0.00029799,5]
[358159527,1744803038396,-203.52070851,0.000299,8]
[358159529,1744803038406,-500.0,0.0003,10]
[358159530,1744803038415,-399.28046891,0.0003,10]
[358159532,1744803038424,-11803.22345738,0.0003,60]
[358159534,1744803038434,-8105.27717309,0.0003,10]
[358159536,1744803038443,-2854.00839654,0.00030188,2]
[358159537,1744803038453,-203.52070851,0.0003075,9]
[358159539,1744803038463,-500.0,0.00031368,5]
[358159540,1744803038472,-203.52070851,0.000316,10]
[358159541,1744803038482,-203.52070851,0.0003245,10]
[358159542,1744803038493,-500.0,0.00032936,5]
[358159543,1744803038502,-203.52070851,0.000333,11]
[358159545,1744803038512,-203.52070851,0.0003415,11]
[358159546,1744803038522,-531.06431353,0.00034583,5]
[358159547,1744803038531,-1126.36,0.00034674,5]
[358159548,1744803038542,-203.52070851,0.00035,12]
[358159549,1744803038551,-203.52070851,0.0003585,12]
[358159550,1744803038561,-743.2467113,0.00036219,2]
[358159551,1744803038571,-203.52070851,0.000367,13]
[358159552,1744803038581,-203.52070851,0.0003755,14]
[358159553,1744803038590,-912.44470591,0.00037969,2]
[358159554,1744803038600,-203.52070851,0.000384,14]
[358159555,1744803038610,-1000.0,0.00039,10]
[358159556,1744803038620,-2756.25431075,0.00039083,2]
[358159557,1744803038631,-203.52070851,0.0003925,15]
[358159558,1744803038640,-302.94486554,0.00039905,2]
[358159559,1744803038651,-154.71305417,0.00039999,31]
[358159560,1744803038660,-500.0,0.00039999,31]
[358159561,1744803038670,-258.36078427,0.00039999,31]
[358159562,1744803038680,-156.31314247,0.00039999,2]
[358159563,1744803038690,-2000.0,0.0004,120]
[358159564,1744803038700,-2000.0,0.0004,120]
[358159565,1744803038709,-2085.0,0.0004,120]
[358159566,1744803038719,-200.24704086,0.0004,2]
[358159567,1744803038729,-203.52070851,0.000401,15]
[358159568,1744803038739,-187.6619059,0.00040272,4]
[358159569,1744803038749,-174.22641116,0.00040392,2]
[358159570,1744803038759,-14511.94312494,0.00040392,3]
[358159604,1744803085516,203.858984,0.00025,120]
[358159613,1744804009264,-198.38881363,0.00024953,2]
[358159628,1744804232960,-161.36324947,0.00033304,2]
[358159629,1744804232973,-88.63675053,0.00033304,2]
[358159630,1744804232982,-4042.6649539,0.00033937,7]
[358159631,1744804232993,-1000.0,0.00034145,2]
[358159632,1744804233004,-250.0,0.00034671,2]
[358159633,1744804233014,-225.9803013,0.000349,12]
[358159634,1744804233023,-152.0,0.00035121,2]
[358159635,1744804233033,-400.0,0.00035259,2]
[358159636,1744804233043,-225.98030123,0.00035279,12]
[358159637,1744804233054,-400.0,0.0003533,3]
[358159638,1744804233064,-500.0,0.00035534,7]
[358159639,1744804233074,-185.16929688,0.00035534,7]
[358159640,1744804233085,-500.0,0.00035534,7]
[358159641,1744804233095,-265.05855903,0.00035534,7]
[358159642,1744804233105,-45474.59762714,0.00035535,2]
[358159643,1744804233117,-4525.40237286,0.00035535,2]
[358159644,1744804233128,-3398.58585803,0.00035536,2]
[358159645,1744804233144,-2007.73760735,0.00035536,2]
[358159646,1744804233160,-13062.12662792,0.00035536,2]
[358159647,1744804233170,-225.98030123,0.00035659,12]
[358159648,1744804233179,-160.0,0.00035764,2]
[358159649,1744804233189,-1022.15544205,0.00035793,2]
[358159650,1744804233198,-921.60053714,0.00035793,2]
[358159651,1744804233208,-736.7491677,0.00035893,2]
[358159652,1744804233217,-225.98030123,0.00036038,13]
[358159653,1744804233227,-225.98030123,0.00036417,13]
[358159654,1744804233237,-225.98030123,0.00036797,13]
[358159655,1744804233247,-1022.15544202,0.00036914,2]
[358159656,1744804233258,-921.60053708,0.00037045,2]
[358159657,1744804233269,-225.98030123,0.00037176,13]
[358159658,1744804233279,-476.83570611,0.00037357,15]
[358159659,1744804233289,-225.98030123,0.00037555,14]
[358159660,1744804233299,-180.0,0.00037795,2]
[358159661,1744804233309,-225.98030123,0.00037934,14]
[358159662,1744804233319,-560.0,0.00038018,3]
[358159663,1744804233328,-1022.15544202,0.00038035,2]
[358159664,1744804233338,-921.60053708,0.00038297,2]
[358159665,1744804233347,-225.98030123,0.00038314,14]
[358159666,1744804233357,-225.98030123,0.00038693,14]
[358159667,1744804233366,-225.98030123,0.00039072,15]
[358159668,1744804233376,-244.55297252,0.00039116,2]
[358159669,1744804233386,-1022.15544202,0.00039156,2]
[358159670,1744804233396,-225.98030123,0.00039452,15]
[358159671,1744804233407,-856.30070299,0.00039538,3]
[358159672,1744804233416,-12474.5026207,0.00039538,2]
[358159673,1744804233426,-26721.9481717,0.00039539,3]
[358159674,1744804233436,-921.60053708,0.00039549,2]
[358159675,1744804233445,-225.98030123,0.00039831,15]
[358159676,1744804233455,-1000.0,0.0004,2]
[358159677,1744804233464,-1000.0,0.0004,2]
[358159678,1744804233474,-1000.0,0.0004,2]
[358159679,1744804233484,-1000.0,0.0004,2]
[358159680,1744804233494,-1000.0,0.0004,2]
[358159681,1744804233504,-1000.0,0.0004,2]
[358159682,1744804233515,-1000.0,0.0004,2]
[358159683,1744804233524,-1000.0,0.0004,2]
[358159684,1744804233534,-1000.0,0.0004,2]
[358159685,1744804233544,-1000.47817862,0.0004,2]
[358159686,1744804233553,-225.98030123,0.0004021,15]
[358159687,1744804233564,-151.0,0.00040257,2]
[358159688,1744804233573,-187.661906,0.00040263,4]
[358159689,1744804233587,-106887.792687,0.00040271,3]
[358159690,1744804233597,-1022.15544202,0.00040277,2]
[358159691,1744804233606,-160.0,0.0004028,30]
[358159692,1744804233616,-151.0,0.00040281,14]
[358159693,1744804233627,-151.0,0.00040281,14]
[358159694,1744804233637,-118680.01739159,0.00040281,2]
[358159695,1744804233650,-16177.35057766,0.00040281,2]
[358159699,1744804238810,-24786.65236765,0.00040281,2]
[358159700,1744804238822,-47200.06001035,0.00040281,2]
[358159701,1744804238834,-462.83688589,0.00040281,2]
[358159702,1744804238864,-1888.69796097,0.00040281,2]
[358159703,1744804238874,-160.0,0.00040382,3]
[358159704,1744804238884,-151.0,0.00040392,2]
[358159705,1744804238894,-160.0,0.00040449,2]
[358159706,1744804238903,-160.0,0.00040492,3]
[358159707,1744804238912,-151.0,0.00040501,3]
[358159708,1744804238921,-268.45099498,0.00040501,3]
[358159709,1744804238930,-422.2,0.00040501,3]
[358159710,1744804238939,-225.98030123,0.0004059,15]
[358159711,1744804238950,-5003.46650361,0.000406,2]
[358159712,1744804238959,-176.35847866,0.00040601,2]
[358159713,1744804238968,-183.74395919,0.00040601,2]
[358159714,1744804238978,-26721.9481717,0.00040746,3]
[358159715,1744804238988,-151.0,0.00040746,2]
[358159716,1744804238997,-151.0,0.00040756,3]
[358159717,1744804239008,-297.1321519,0.00040756,3]
[358159718,1744804239017,-500.0,0.00040756,3]
[358159719,1744804239027,-152.36265683,0.00040756,3]
[358159720,1744804239036,-151.0,0.00040756,3]
[358159721,1744804239045,-151.0,0.00040756,3]
[358159722,1744804239054,-500.0,0.00040756,3]
[358159723,1744804239063,-151.0,0.00040756,3]
[358159724,1744804239072,-191.10174102,0.00040756,3]
[358159725,1744804239081,-169.0,0.00040756,14]
[358159726,1744804239090,-1218.411104,0.00040756,14]
[358159727,1744804239099,-1218.411104,0.00040756,14]
[358159728,1744804239109,-151.0,0.00040756,14]
[358159729,1744804239118,-218.73840607,0.00040756,14]
[358159730,1744804239128,-500.0,0.00040756,14]
[358159731,1744804239137,-500.0,0.00040756,14]
[358159732,1744804239146,-153.30123575,0.00040756,14]
[358159733,1744804239155,-500.0,0.00040756,14]
[358159734,1744804239165,-500.0,0.00040756,14]
[358159735,1744804239174,-151.0,0.00040756,2]
[358159736,1744804239184,-500.0,0.00040756,14]
[358159737,1744804239193,-500.0,0.00040756,14]
[358159738,1744804239203,-500.0,0.00040756,14]
[358159739,1744804239212,-151.0,0.00040756,2]
[358159740,1744804239221,-500.0,0.00040756,14]
[358159741,1744804239230,-151.0,0.00040783,3]
[358159742,1744804239239,-500.0,0.00040783,3]
[358159743,1744804239249,-198.78586101,0.00040783,3]
[358159744,1744804239258,-151.0,0.00040783,3]
[358159745,1744804239267,-500.0,0.00040783,3]
[358159746,1744804239277,-151.0,0.00040783,3]
[358159747,1744804239286,-151.0,0.00040783,14]
[358159748,1744804239295,-500.0,0.00040783,14]
[358159749,1744804239304,-500.0,0.00040783,14]
[358159750,1744804239314,-500.0,0.00040783,14]
[358159751,1744804239325,-551.73585642,0.00040783,14]
[358159752,1744804239334,-500.0,0.00040783,14]
[358159753,1744804239343,-500.0,0.00040783,14]
[358159754,1744804239352,-500.0,0.00040783,14]
[358159755,1744804239362,-500.0,0.00040783,14]
[358159756,1744804239371,-921.60053708,0.00040801,28]
[358159757,1744804239382,-151.0,0.00040801,2]
[358159758,1744804239391,-151.0,0.00040801,2]
[358159759,1744804239401,-151.0,0.00040811,3]
[358159760,1744804239411,-500.0,0.00040811,3]
[358159761,1744804239420,-153.58348169,0.00040811,3]
[358159762,1744804239430,-500.0,0.00040811,3]
[358159763,1744804239439,-198.85797369,0.00040811,3]
[358159764,1744804239450,-151.0,0.00040811,14]
[358159765,1744804239459,-619.95768425,0.00040811,14]
[358159766,1744804239468,-500.0,0.00040811,14]
[358159767,1744804239477,-500.0,0.00040811,14]
[358159768,1744804239487,-500.0,0.00040811,14]
[358159769,1744804239496,-500.0,0.00040811,14]
[358159770,1744804239506,-500.0,0.00040811,14]
[358159771,1744804239515,-500.0,0.00040811,14]
[358159772,1744804239525,-151.0,0.00040838,3]
[358159773,1744804239535,-500.0,0.00040838,3]
[358159774,1744804239544,-500.0,0.00040838,3]
[358159775,1744804239554,-290.58243285,0.00040838,14]
[358159776,1744804239563,-500.0,0.00040838,14]
[358159777,1744804239572,-157.25419546,0.00040838,14]
[358159778,1744804239584,-500.0,0.00040838,14]
[358159779,1744804239594,-500.0,0.00040838,14]
[358159780,1744804239603,-303.96953325,0.00040838,14]
[358159781,1744804239611,-500.0,0.00040838,14]
[358159782,1744804239620,-233.283296,0.00040866,3]
[358159783,1744804239630,-500.0,0.00040866,3]
[358159784,1744804239639,-500.0,0.00040866,3]
[358159785,1744804239648,-500.0,0.00040866,14]
[358159786,1744804239656,-500.0,0.00040866,14]
[358159787,1744804239665,-500.0,0.00040866,14]
[358159788,1744804239674,-500.0,0.00040866,14]
[358159789,1744804239683,-500.0,0.00040893,3]
[358159790,1744804239692,-500.0,0.00040893,3]
[358159791,1744804239700,-500.0,0.00040893,14]
[358159792,1744804239709,-500.0,0.00040893,14]
[358159793,1744804239719,-500.0,0.00040893,14]
[358159794,1744804239727,-500.0,0.00040893,14]
[358159795,1744804239737,-634.0,0.000409,30]
[358159796,1744804239746,-402.0,0.00040904,2]
[358159797,1744804239755,-783.0,0.0004091,5]
[358159798,1744804239766,-500.0,0.0004092,3]
[358159799,1744804239776,-500.0,0.0004092,3]
[358159800,1744804239786,-500.0,0.0004092,14]
[358159801,1744804239796,-500.0,0.0004092,14]
[358159802,1744804239805,-500.0,0.0004092,14]
[358159803,1744804239815,-500.0,0.0004092,14]
[358159804,1744804239824,-500.0,0.00040948,3]
[358159805,1744804239834,-500.0,0.00040948,3]
[358159806,1744804239844,-500.0,0.00040948,14]
[358159807,1744804239854,-500.0,0.00040948,14]
[358159808,1744804239863,-500.0,0.00040948,14]
[358159809,1744804239873,-500.0,0.00040948,14]
[358159810,1744804239884,-225.98030123,0.00040969,16]
[358159811,1744804239893,-500.0,0.00040975,3]
[358159812,1744804239903,-500.0,0.00040975,3]
[358159813,1744804239913,-500.0,0.00040975,14]
[358159820,1744804240210,-188.30341976,0.00040975,14]
[358159821,1744804240220,-500.0,0.00040975,14]
[358159822,1744804240230,-500.0,0.00040975,14]
[358159823,1744804240239,-1218.411104,0.00040986,14]
[358159824,1744804240248,-1218.411104,0.00040986,14]
[358159825,1744804240257,-26721.9481717,0.00040992,3]
[358159826,1744804240268,-150.0,0.00041,45]
[358159827,1744804240277,-1000.0,0.00041,120]
[358159828,1744804240287,-659.69521784,0.00041,5]
[358159829,1744804240296,-500.0,0.00041,120]
[358159830,1744804240306,-500.0,0.00041003,3]
[358159831,1744804240315,-1.72641056,0.00041003,3]
[358159832,1744804240328,-498.27358944,0.00041003,3]
[358159833,1744804240337,-500.0,0.00041003,14]
[358159834,1744804240347,-500.0,0.00041003,14]
[358159835,1744804240356,-500.0,0.00041003,14]
[358159836,1744804240365,-500.0,0.0004103,3]
[358159837,1744804240375,-500.0,0.0004103,3]
[358159838,1744804240384,-500.0,0.0004103,14]
[358159839,1744804240394,-500.0,0.0004103,14]
[358159840,1744804240404,-624.46347712,0.0004103,14]
[358159841,1744804240414,-500.0,0.00041057,3]
[358159842,1744804240423,-594.474511,0.00041057,3]
[358159843,1744804240432,-500.0,0.00041057,14]
[358159844,1744804240442,-500.0,0.00041057,14]
[358159845,1744804240452,-200.0,0.00041073,5]
[358159846,1744804240461,-276.02745673,0.00041073,5]
[358159847,1744804240471,-323.0,0.00041073,5]
[358159848,1744804240480,-520.55206321,0.00041073,5]
[358159849,1744804240490,-500.0,0.00041073,5]
[358159850,1744804240499,-500.0,0.00041073,5]
[358159851,1744804240509,-500.0,0.00041073,5]
[358159852,1744804240519,-649.93564797,0.00041073,2]
[358159853,1744804240530,-500.0,0.00041073,5]
[358159854,1744804240540,-500.0,0.00041073,5]
[358159856,1744804240551,-500.8897972,0.00041073,5]
[358159858,1744804240561,-500.0,0.00041073,5]
[358159860,1744804240571,-151.0,0.00041073,2]
[358159861,1744804240581,-151.0,0.00041073,2]
[358159862,1744804240595,-211.18684726,0.00041078,7]
[358159863,1744804240606,-500.0,0.00041085,3]
[358159864,1744804240616,-500.0,0.00041085,14]
[358159865,1744804240626,-500.0,0.00041085,14]
[358159866,1744804240636,-1218.411104,0.00041085,14]
[358159867,1744804240646,-1218.411104,0.00041085,14]
[358159868,1744804240655,-151.0,0.00041085,2]
[358159869,1744804240664,-151.0,0.00041085,2]
[358159870,1744804240674,-13611.36124835,0.00041085,3]
[358159871,1744804240715,-2632.55469546,0.00041085,3]
[358159872,1744804241127,-857.29272341,0.00041085,3]
[358159873,1744804241160,-748.64901291,0.00041085,3]
[358159897,1744804243684,-27.67057514,0.00041072,2]
[358159898,1744804243695,-156.07338405,0.00041072,2]
[358159899,1744804243705,-17041.12788922,0.00041085,3]
[358159907,1744804246737,-183.74395919,0.00041084,2]
[358159908,1744804246748,-1994.53013465,0.00041085,3]
[358159909,1744804246760,-943.7425925,0.00041085,3]
[358159910,1744804246772,-15614.6380469,0.00041085,3]
[358159911,1744804246781,-163.84704066,0.00041094,30]
[358159912,1744804246791,-20964.99074655,0.00041095,14]
[358159927,1744804465782,967.58766617,0.00025,120]
[358159928,1744804479549,281.77654818,0.00025,120]
[358159959,1744805364133,-3750.47241788,0.00033,2]
[358159960,1744805366119,-249.52758212,0.00033,2]
[358159961,1744805366142,-400.0,0.00033771,2]
[358159962,1744805366165,-400.0,0.00033771,3]
[358159963,1744805366188,-9699.9217521,0.00033772,2]
[358159964,1744805366212,-253.4142818,0.000339,11]
[358159965,1744805366237,-253.41428164,0.00034279,11]
[358159966,1744805366259,-420.08908737,0.00034553,2]
[358159967,1744805366282,-160.0,0.00034553,2]
[358159968,1744805366306,-253.41428164,0.00034659,12]
[358159969,1744805366331,-253.41428164,0.00035038,12]
[358159970,1744805366358,-253.41428164,0.00035417,12]
[358159971,1744805366383,-253.41428164,0.00035797,12]
[358159972,1744805366406,-253.41428164,0.00036176,13]
[358159973,1744805366427,-83.77238518,0.00036257,2]
[358159991,1744805431806,-228.8605792,0.00036038,2]
[358159992,1744805431816,-263.07917187,0.00036403,3]
[358160002,1744805437815,-296.92082813,0.00036403,3]
[358160003,1744805437826,-253.41428164,0.00036555,13]
[358160004,1744805437836,-253.41428164,0.00036934,13]
[358160005,1744805437846,-253.41428164,0.00037314,13]
[358160006,1744805437856,-253.41428164,0.00037693,14]
[358160007,1744805437866,-253.41428164,0.00038072,14]
[358160008,1744805437876,-486.51450416,0.00038256,2]
[358160009,1744805437885,-400.0,0.00038339,5]
[358160010,1744805437895,-333.78499428,0.00038345,15]
[358160011,1744805437904,-500.0,0.00038345,2]
[358160012,1744805437916,-487.12647138,0.00038345,15]
[358160013,1744805437925,-500.0,0.00038345,15]
[358160014,1744805437935,-500.0,0.00038345,15]
[358160015,1744805437945,-463.14450822,0.00038345,2]
[358160016,1744805437974,-36.85549178,0.00038345,2]
[358160017,1744805437985,-500.0,0.00038345,15]
[358160018,1744805437995,-257.95074397,0.00038345,15]
[358160019,1744805438005,-500.0,0.00038345,15]
[358160020,1744805438014,-51.39129254,0.00038345,2]
[358160021,1744805438027,-448.60870746,0.00038345,2]
[358160022,1744805438037,-92.85774772,0.00038345,15]
[358160023,1744805438049,-407.14225228,0.00038345,15]
[358160024,1744805438059,-500.0,0.00038345,2]
[358160025,1744805438070,-637.40428315,0.00038345,15]
[358160026,1744805438080,-500.0,0.00038345,2]
[358160027,1744805438090,-500.0,0.00038345,2]
[358160028,1744805438099,-500.0,0.00038345,2]
[358160029,1744805438110,-500.0,0.00038345,2]
[358160030,1744805438120,-500.0,0.00038345,2]
[358160031,1744805438130,-500.0,0.00038345,2]
[358160032,1744805438140,-500.0,0.00038345,2]
[358160033,1744805438150,-500.0,0.00038345,2]
[358160034,1744805438163,-500.0,0.00038345,2]
[358160035,1744805438176,-500.0,0.00038345,2]
[358160036,1744805438186,-500.0,0.00038345,2]
[358160037,1744805438198,-500.0,0.00038345,2]
[358160038,1744805438209,-500.0,0.00038345,2]
[358160039,1744805438220,-500.0,0.00038345,2]
[358160040,1744805438230,-502.56432156,0.00038345,2]
[358160041,1744805438240,-500.0,0.00038345,2]
[358160042,1744805438251,-500.0,0.00038345,2]
[358160043,1744805438261,-11707.3739997,0.00038346,3]
[358160044,1744805438274,-1055.18969414,0.00038346,3]
[358160076,1744805445799,-10155.03519567,0.00038346,3]
[358160078,1744805554392,157.59426,0.00025,120]
[358160094,1744806177076,-492.43932044,0.00025,2]
[358160111,1744806412091,-241.8631431,0.00025,2]
[358160112,1744806412114,-0.35093242,0.00038,14]
[358160118,1744806475772,368.51237548,0.00018,2]
[358160123,1744806486694,-175.59360631,0.00019977,2]
[358160130,1744806524185,199.29166671,0.000175,4]
[358160131,1744806525989,-158.56468884,0.00019977,2]
[358160135,1744806543933,-261.38014621,0.00019976,2]
[358160136,1744806561083,-38.61985379,0.00019976,2]
[358160137,1744806561106,-222.76029242,0.00019977,2]
[358160138,1744806573130,-11330.3202328,0.00019977,2]